[Event "Titled Tuesday Blitz January 10 Early 2023"]
[White "Bashirli, Saadat"]
[Black "Urbina Perez, Juan Antonio"]
[WhiteFideId "13429990"]
[BlackFideId "2217368"]
[WhiteElo "1571"]
[BlackElo "2266"]
[Result "0-1"]
[Round "03"]
[TimeControl "180+2"]
[Date "2023.01.10"]
[WhiteClock "0:00:11"]
[BlackClock "0:00:29"]

1. d4 {[%clk 0:03:00]}  Nf6 {[%clk 0:02:52]} 2. c4 {[%clk 0:03:00]}  e6 {[%clk 0:02:51]} 3. Nc3 {[%clk 0:02:57]}  Bb4 {[%clk 0:02:51]} 4. e3 {[%clk 0:02:58]}  b6 {[%clk 0:02:49]} 5. Bd3 {[%clk 0:02:56]}  Bb7 {[%clk 0:02:49]} 6. Nf3 {[%clk 0:02:53]}  Ne4 {[%clk 0:02:48]} 7. Bd2 {[%clk 0:02:48]}  Bxc3 {[%clk 0:02:43]} 8. Bxc3 {[%clk 0:02:46]}  O-O {[%clk 0:02:38]} 9. Qc2 {[%clk 0:02:44]}  f5 {[%clk 0:02:35]} 10. Bxe4 {[%clk 0:02:36]}  Bxe4 {[%clk 0:02:32]} 11. Qe2 {[%clk 0:02:34]}  d6 {[%clk 0:02:28]} 12. O-O {[%clk 0:02:32]}  Nd7 {[%clk 0:02:28]} 13. Nd2 {[%clk 0:02:29]}  Bb7 {[%clk 0:02:27]} 14. f3 {[%clk 0:02:28]}  Qe7 {[%clk 0:02:20]} 15. e4 {[%clk 0:02:25]}  fxe4 {[%clk 0:02:15]} 16. fxe4 {[%clk 0:02:26]}  e5 {[%clk 0:02:16]} 17. dxe5 {[%clk 0:02:19]}  Nxe5 {[%clk 0:02:17]} 18. b3 {[%clk 0:02:11]}  Rxf1+ {[%clk 0:02:15]} 19. Rxf1 {[%clk 0:02:10]}  Rf8 {[%clk 0:02:16]} 20. Rxf8+ {[%clk 0:02:03]}  Kxf8 {[%clk 0:02:17]} 21. Qf2+ {[%clk 0:01:55]}  Kg8 {[%clk 0:02:15]} 22. Qf5 {[%clk 0:01:55]}  Ng6 {[%clk 0:02:05]} 23. Bd4 {[%clk 0:01:40]}  Qf7 {[%clk 0:02:02]} 24. Qxf7+ {[%clk 0:01:39]}  Kxf7 {[%clk 0:02:03]} 25. Kf2 {[%clk 0:01:39]}  Nf8 {[%clk 0:01:58]} 26. Ke3 {[%clk 0:01:35]}  Ne6 {[%clk 0:01:50]} 27. Bc3 {[%clk 0:01:33]}  Ng5 {[%clk 0:01:45]} 28. Kf4 {[%clk 0:01:30]}  Ne6+ {[%clk 0:01:43]} 29. Ke3 {[%clk 0:01:27]}  g6 {[%clk 0:01:44]} 30. Nf3 {[%clk 0:01:26]}  h6 {[%clk 0:01:31]} 31. e5 {[%clk 0:01:18]}  d5 {[%clk 0:01:31]} 32. cxd5 {[%clk 0:01:14]}  Bxd5 {[%clk 0:01:32]} 33. g3 {[%clk 0:01:03]}  Bxf3 {[%clk 0:01:25]} 34. Kxf3 {[%clk 0:01:04]}  Nc5 {[%clk 0:01:25]} 35. Ke3 {[%clk 0:00:58]}  Ke6 {[%clk 0:01:24]} 36. Kd4 {[%clk 0:00:52]}  Nd7 {[%clk 0:01:18]} 37. Ke4 {[%clk 0:00:51]}  Nb8 {[%clk 0:01:08]} 38. h3 {[%clk 0:00:45]}  Na6 {[%clk 0:01:06]} 39. b4 {[%clk 0:00:39]}  c6 {[%clk 0:01:01]} 40. a4 {[%clk 0:00:36]}  Nc7 {[%clk 0:01:01]} 41. Bd2 {[%clk 0:00:33]}  a6 {[%clk 0:00:59]} 42. Be3 {[%clk 0:00:30]}  Nd5 {[%clk 0:00:59]} 43. Bd2 {[%clk 0:00:30]}  h5 {[%clk 0:00:58]} 44. g4 {[%clk 0:00:25]}  hxg4 {[%clk 0:00:57]} 45. hxg4 {[%clk 0:00:26]}  c5 {[%clk 0:00:50]} 46. bxc5 {[%clk 0:00:20]}  bxc5 {[%clk 0:00:51]} 47. a5 {[%clk 0:00:15]}  Nb4 {[%clk 0:00:47]} 48. Be3 {[%clk 0:00:13]}  Nc6 {[%clk 0:00:47]} 49. Bxc5 {[%clk 0:00:12]}  Nxa5 {[%clk 0:00:47]} 50. Bb6 {[%clk 0:00:10]}  Nc6 {[%clk 0:00:46]} 51. Bc7 {[%clk 0:00:10]}  a5 {[%clk 0:00:46]} 52. Bd6 {[%clk 0:00:10]}  a4 {[%clk 0:00:45]} 53. Kf4 {[%clk 0:00:07]}  Kf7 {[%clk 0:00:38]} 54. Ba3 {[%clk 0:00:01]}  Nd4 {[%clk 0:00:30]} 55. Bb2 {[%clk 0:00:01]}  Ne6+ {[%clk 0:00:31]} 56. Ke4 {[%clk 0:00:02]}  Ke7 {[%clk 0:00:27]} 57. Kd5 {[%clk 0:00:02]}  Kd7 {[%clk 0:00:26]} 58. Kc4 {[%clk 0:00:02]}  Nf4 {[%clk 0:00:25]} 59. Kb4 {[%clk 0:00:02]}  Nd3+ {[%clk 0:00:24]} 60. Ka3 {[%clk 0:00:03]}  Nxb2 {[%clk 0:00:23]} 61. Kxb2 {[%clk 0:00:04]}  Ke6 {[%clk 0:00:24]} 62. Ka3 {[%clk 0:00:04]}  Kxe5 {[%clk 0:00:24]} 63. Kxa4 {[%clk 0:00:05]}  Kf4 {[%clk 0:00:25]} 64. Kb3 {[%clk 0:00:06]}  Kxg4 {[%clk 0:00:26]} 65. Kc3 {[%clk 0:00:07]}  Kf3 {[%clk 0:00:26]} 66. Kd3 {[%clk 0:00:08]}  g5 {[%clk 0:00:26]} 67. Kd2 {[%clk 0:00:08]}  Kf2 {[%clk 0:00:27]} 68. Kd3 {[%clk 0:00:07]}  g4 {[%clk 0:00:28]} 69. Ke4 {[%clk 0:00:07]}  g3 {[%clk 0:00:28]} 70. Kf4 {[%clk 0:00:08]}  g2 {[%clk 0:00:29]} 71. Kg4 {[%clk 0:00:09]}  g1=Q+ {[%clk 0:00:30]} 72. Kh4 {[%clk 0:00:10]}  Kf3 {[%clk 0:00:29]} 73. Kh3 {[%clk 0:00:11]}  Qg3# {[%clk 0:00:29]} 0-1


[Site "https://www.chess.com"]

[Event "Titled Tuesday Blitz January 10 Early 2023"]
[White "Alfaro, William"]
[Black "Shohat, Yotam"]
[WhiteFideId "6100457"]
[BlackFideId "2813955"]
[WhiteElo "2134"]
[BlackElo "2346"]
[Result "0-1"]
[Round "03"]
[TimeControl "180+2"]
[Date "2023.01.10"]
[WhiteClock "0:00:14"]
[BlackClock "0:00:04"]

1. Nf3 {[%clk 0:03:00]}  Nf6 {[%clk 0:02:58]} 2. g3 {[%clk 0:03:00]}  g6 {[%clk 0:02:58]} 3. Bg2 {[%clk 0:03:00]}  Bg7 {[%clk 0:02:58]} 4. O-O {[%clk 0:02:59]}  O-O {[%clk 0:02:59]} 5. d3 {[%clk 0:03:00]}  d5 {[%clk 0:02:56]} 6. Nbd2 {[%clk 0:02:59]}  Nc6 {[%clk 0:02:53]} 7. e4 {[%clk 0:03:00]}  e5 {[%clk 0:02:54]} 8. Re1 {[%clk 0:02:57]}  Re8 {[%clk 0:02:54]} 9. exd5 {[%clk 0:02:55]}  Nxd5 {[%clk 0:02:54]} 10. Nc4 {[%clk 0:02:55]}  Bf5 {[%clk 0:02:28]} 11. Bg5 {[%clk 0:02:52]}  Qd7 {[%clk 0:02:23]} 12. Nh4 {[%clk 0:02:45]}  Be6 {[%clk 0:02:21]} 13. Qd2 {[%clk 0:02:31]}  f6 {[%clk 0:02:04]} 14. Bh6 {[%clk 0:02:29]}  Rad8 {[%clk 0:02:04]} 15. a3 {[%clk 0:02:22]}  Nf4 {[%clk 0:01:41]} 16. Bxf4 {[%clk 0:01:32]}  Bxc4 {[%clk 0:01:07]} 17. Bh6 {[%clk 0:00:58]}  Bd5 {[%clk 0:01:05]} 18. Nf3 {[%clk 0:00:55]}  Bxf3 {[%clk 0:00:35]} 19. Bxg7 {[%clk 0:00:50]}  Bxg2 {[%clk 0:00:28]} 20. Bxf6 {[%clk 0:00:49]}  Qh3 {[%clk 0:00:27]} 21. f4 {[%clk 0:00:34]}  Bd5 {[%clk 0:00:15]} 22. fxe5 {[%clk 0:00:33]}  Nd4 {[%clk 0:00:14]} 23. Rf1 {[%clk 0:00:28]}  Nf3+ {[%clk 0:00:09]} 24. Rxf3 {[%clk 0:00:26]}  Bxf3 {[%clk 0:00:10]} 25. Rf1 {[%clk 0:00:26]}  Bd5 {[%clk 0:00:05]} 26. Bxd8 {[%clk 0:00:26]}  Rxd8 {[%clk 0:00:06]} 27. Qf2 {[%clk 0:00:23]}  Qe6 {[%clk 0:00:05]} 28. d4 {[%clk 0:00:22]}  Qe7 {[%clk 0:00:04]} 29. b3 {[%clk 0:00:20]}  Rf8 {[%clk 0:00:04]} 30. Qe2 {[%clk 0:00:19]}  Rxf1+ {[%clk 0:00:04]} 31. Qxf1 {[%clk 0:00:19]}  Be6 {[%clk 0:00:03]} 32. c4 {[%clk 0:00:19]}  Qf7 {[%clk 0:00:04]} 33. Qxf7+ {[%clk 0:00:18]}  Kxf7 {[%clk 0:00:04]} 34. d5 {[%clk 0:00:19]}  Bf5 {[%clk 0:00:05]} 35. Kf2 {[%clk 0:00:19]}  Bc2 {[%clk 0:00:05]} 36. b4 {[%clk 0:00:17]}  Bb3 {[%clk 0:00:05]} 37. d6 {[%clk 0:00:18]}  cxd6 {[%clk 0:00:04]} 38. exd6 {[%clk 0:00:18]}  Bxc4 {[%clk 0:00:04]} 39. Ke3 {[%clk 0:00:18]}  Ke6 {[%clk 0:00:04]} 40. Kd4 {[%clk 0:00:19]}  Bf1 {[%clk 0:00:03]} 41. Kc5 {[%clk 0:00:19]}  Bg2 {[%clk 0:00:03]} 42. a4 {[%clk 0:00:19]}  b6+ {[%clk 0:00:04]} 43. Kb5 {[%clk 0:00:20]}  Kxd6 {[%clk 0:00:04]} 44. Ka6 {[%clk 0:00:21]}  Kc7 {[%clk 0:00:04]} 45. Kxa7 {[%clk 0:00:21]}  Bc6 {[%clk 0:00:05]} 46. b5 {[%clk 0:00:20]}  Bd5 {[%clk 0:00:05]} 47. h4 {[%clk 0:00:18]}  h6 {[%clk 0:00:05]} 48. g4 {[%clk 0:00:18]}  g5 {[%clk 0:00:05]} 49. hxg5 {[%clk 0:00:18]}  hxg5 {[%clk 0:00:05]} 50. Ka6 {[%clk 0:00:19]}  Bf3 {[%clk 0:00:05]} 51. Ka7 {[%clk 0:00:18]}  Bxg4 {[%clk 0:00:03]} 52. a5 {[%clk 0:00:18]}  Bf3 {[%clk 0:00:03]} 53. a6 {[%clk 0:00:15]}  Be2 {[%clk 0:00:03]} 54. Ka8 {[%clk 0:00:14]}  Bxb5 {[%clk 0:00:03]} 55. Ka7 {[%clk 0:00:14]}  Bxa6 {[%clk 0:00:03]} 56. Kxa6 {[%clk 0:00:14]}  g4 {[%clk 0:00:04]} 0-1


[Site "https://www.chess.com"]

[Event "Titled Tuesday Blitz January 10 Early 2023"]
[White "Szyszylo, Rafal"]
[Black "Mohota, Nisha"]
[WhiteFideId "1109626"]
[BlackFideId "5004330"]
[WhiteElo "2091"]
[BlackElo "2177"]
[Result "1-0"]
[Round "03"]
[TimeControl "180+2"]
[Date "2023.01.10"]
[WhiteClock "0:00:09"]
[BlackClock "0:00:01"]

1. e4 {[%clk 0:00:39]}  Nf6 {[%clk 0:02:58]} 2. e5 {[%clk 0:00:39]}  Nd5 {[%clk 0:02:58]} 3. d4 {[%clk 0:00:40]}  d6 {[%clk 0:02:58]} 4. Nf3 {[%clk 0:00:40]}  dxe5 {[%clk 0:02:56]} 5. Nxe5 {[%clk 0:00:40]}  c6 {[%clk 0:02:56]} 6. Be2 {[%clk 0:00:40]}  Bf5 {[%clk 0:02:55]} 7. O-O {[%clk 0:00:40]}  Nd7 {[%clk 0:02:55]} 8. Nxd7 {[%clk 0:00:39]}  Qxd7 {[%clk 0:02:54]} 9. c3 {[%clk 0:00:40]}  e6 {[%clk 0:02:54]} 10. Bf3 {[%clk 0:00:41]}  Bd6 {[%clk 0:02:50]} 11. g3 {[%clk 0:00:40]}  O-O {[%clk 0:02:49]} 12. Re1 {[%clk 0:00:40]}  b5 {[%clk 0:02:45]} 13. Nd2 {[%clk 0:00:39]}  Nf6 {[%clk 0:02:31]} 14. Ne4 {[%clk 0:00:39]}  Bxe4 {[%clk 0:02:29]} 15. Bxe4 {[%clk 0:00:39]}  Rac8 {[%clk 0:02:28]} 16. Bg2 {[%clk 0:00:39]}  Qc7 {[%clk 0:02:23]} 17. Bg5 {[%clk 0:00:39]}  Nd5 {[%clk 0:02:23]} 18. Rc1 {[%clk 0:00:38]}  h6 {[%clk 0:02:21]} 19. Bd2 {[%clk 0:00:37]}  Rfd8 {[%clk 0:02:18]} 20. Qh5 {[%clk 0:00:37]}  Bf8 {[%clk 0:02:16]} 21. Be4 {[%clk 0:00:36]}  Nf6 {[%clk 0:02:13]} 22. Qf3 {[%clk 0:00:34]}  Nxe4 {[%clk 0:02:12]} 23. Qxe4 {[%clk 0:00:31]}  c5 {[%clk 0:02:12]} 24. Be3 {[%clk 0:00:31]}  c4 {[%clk 0:02:07]} 25. Rcd1 {[%clk 0:00:29]}  b4 {[%clk 0:02:03]} 26. Bf4 {[%clk 0:00:29]}  Qb6 {[%clk 0:01:56]} 27. d5 {[%clk 0:00:29]}  exd5 {[%clk 0:01:32]} 28. Rxd5 {[%clk 0:00:30]}  bxc3 {[%clk 0:01:31]} 29. bxc3 {[%clk 0:00:30]}  Rxd5 {[%clk 0:01:26]} 30. Qxd5 {[%clk 0:00:31]}  Qb2 {[%clk 0:01:23]} 31. Qd2 {[%clk 0:00:23]}  Qxd2 {[%clk 0:01:19]} 32. Bxd2 {[%clk 0:00:24]}  Rd8 {[%clk 0:01:20]} 33. Re2 {[%clk 0:00:23]}  Rd6 {[%clk 0:01:01]} 34. Kf1 {[%clk 0:00:23]}  Ra6 {[%clk 0:00:53]} 35. Be3 {[%clk 0:00:22]}  Ra3 {[%clk 0:00:50]} 36. Bd4 {[%clk 0:00:23]}  f6 {[%clk 0:00:47]} 37. Re8 {[%clk 0:00:23]}  Kf7 {[%clk 0:00:46]} 38. Rxf8+ {[%clk 0:00:23]}  Kg6 {[%clk 0:00:42]} 39. Rc8 {[%clk 0:00:22]}  Rxa2 {[%clk 0:00:39]} 40. Rxc4 {[%clk 0:00:22]}  a5 {[%clk 0:00:35]} 41. h4 {[%clk 0:00:22]}  h5 {[%clk 0:00:33]} 42. Rc7 {[%clk 0:00:21]}  a4 {[%clk 0:00:30]} 43. Bc5 {[%clk 0:00:21]}  Ra1+ {[%clk 0:00:25]} 44. Ke2 {[%clk 0:00:21]}  a3 {[%clk 0:00:24]} 45. Ra7 {[%clk 0:00:22]}  a2 {[%clk 0:00:24]} 46. Bd4 {[%clk 0:00:22]}  Kf5 {[%clk 0:00:19]} 47. f3 {[%clk 0:00:21]}  Ke6 {[%clk 0:00:18]} 48. c4 {[%clk 0:00:19]}  Rc1 {[%clk 0:00:15]} 49. Ra6+ {[%clk 0:00:18]}  Kd7 {[%clk 0:00:13]} 50. Kd3 {[%clk 0:00:17]}  Rd1+ {[%clk 0:00:11]} 51. Ke4 {[%clk 0:00:17]}  Re1+ {[%clk 0:00:10]} 52. Kd5 {[%clk 0:00:17]}  Re2 {[%clk 0:00:10]} 53. Ra7+ {[%clk 0:00:17]}  Kc8 {[%clk 0:00:10]} 54. Rxg7 {[%clk 0:00:16]}  Rd2 {[%clk 0:00:09]} 55. Ra7 {[%clk 0:00:16]}  Kb8 {[%clk 0:00:08]} 56. Ra3 {[%clk 0:00:14]}  Kb7 {[%clk 0:00:08]} 57. g4 {[%clk 0:00:14]}  Kc7 {[%clk 0:00:04]} 58. gxh5 {[%clk 0:00:13]}  Rh2 {[%clk 0:00:04]} 59. Bxf6 {[%clk 0:00:10]}  Rg2 {[%clk 0:00:02]} 60. h6 {[%clk 0:00:09]}  Kd7 {[%clk 0:00:01]} 61. h7 {[%clk 0:00:09]}  Kc7 {[%clk 0:00:01]} 62. h8=Q {[%clk 0:00:09]}  Rd2+ {[%clk 0:00:01]} 63. Bd4 {[%clk 0:00:09]} 1-0


[Site "https://www.chess.com"]

[Event "Titled Tuesday Blitz January 10 Early 2023"]
[White "Hartikainen, Jarmo"]
[Black "Nathan, Nitish"]
[WhiteFideId "503134"]
[BlackFideId "30927870"]
[WhiteElo "2108"]
[BlackElo "2071"]
[Result "1-0"]
[Round "03"]
[TimeControl "180+2"]
[Date "2023.01.10"]
[WhiteClock "0:00:46"]
[BlackClock "0:01:27"]

1. e4 {[%clk 0:03:00]}  c5 {[%clk 0:02:59]} 2. c3 {[%clk 0:03:01]}  d5 {[%clk 0:02:57]} 3. exd5 {[%clk 0:03:01]}  Qxd5 {[%clk 0:02:57]} 4. d4 {[%clk 0:03:02]}  Nc6 {[%clk 0:02:58]} 5. Nf3 {[%clk 0:03:02]}  Bf5 {[%clk 0:02:58]} 6. Be3 {[%clk 0:02:42]}  Bxb1 {[%clk 0:02:52]} 7. Qxb1 {[%clk 0:02:40]}  e6 {[%clk 0:02:50]} 8. Bd3 {[%clk 0:02:30]}  cxd4 {[%clk 0:02:49]} 9. Nxd4 {[%clk 0:02:25]}  Qxg2 {[%clk 0:02:48]} 10. Be4 {[%clk 0:02:23]}  Qh3 {[%clk 0:02:39]} 11. Nxc6 {[%clk 0:02:21]}  Nf6 {[%clk 0:02:36]} 12. Nd4 {[%clk 0:02:11]}  Bd6 {[%clk 0:02:31]} 13. Bxb7 {[%clk 0:01:58]}  Rb8 {[%clk 0:02:29]} 14. Bc6+ {[%clk 0:01:58]}  Ke7 {[%clk 0:02:29]} 15. Nb5 {[%clk 0:01:45]}  Ng4 {[%clk 0:02:13]} 16. Qd3 {[%clk 0:01:31]}  Rhd8 {[%clk 0:01:53]} 17. O-O-O {[%clk 0:01:25]}  Qh5 {[%clk 0:01:45]} 18. Nxd6 {[%clk 0:01:19]}  Nxe3 {[%clk 0:01:44]} 19. fxe3 {[%clk 0:01:13]}  Qc5 {[%clk 0:01:43]} 20. Nb7 {[%clk 0:00:57]}  Qb6 {[%clk 0:01:37]} 21. Qxd8+ {[%clk 0:00:50]}  Rxd8 {[%clk 0:01:36]} 22. Nxd8 {[%clk 0:00:51]}  Qxe3+ {[%clk 0:01:31]} 23. Kb1 {[%clk 0:00:46]}  f5 {[%clk 0:01:27]} 24. Rhe1 {[%clk 0:00:46]} 1-0


[Site "https://www.chess.com"]

[Event "Titled Tuesday Blitz January 10 Early 2023"]
[White "Mitrovic, Darko R"]
[Black "marik_spb"]
[WhiteFideId "927023"]
[WhiteElo "2220"]
[BlackElo "2432"]
[Result "0-1"]
[Round "03"]
[TimeControl "180+2"]
[Date "2023.01.10"]
[WhiteClock "0:00:13"]
[BlackClock "0:00:35"]

1. d4 {[%clk 0:03:00]}  Nf6 {[%clk 0:02:49]} 2. Nf3 {[%clk 0:03:00]}  b6 {[%clk 0:02:48]} 3. g3 {[%clk 0:03:01]}  Bb7 {[%clk 0:02:46]} 4. Bg2 {[%clk 0:03:01]}  e6 {[%clk 0:02:47]} 5. O-O {[%clk 0:03:01]}  c5 {[%clk 0:02:43]} 6. c4 {[%clk 0:03:00]}  d5 {[%clk 0:02:40]} 7. cxd5 {[%clk 0:02:59]}  exd5 {[%clk 0:02:37]} 8. Nc3 {[%clk 0:02:58]}  Be7 {[%clk 0:02:30]} 9. Bg5 {[%clk 0:02:30]}  O-O {[%clk 0:02:20]} 10. Rc1 {[%clk 0:02:25]}  Nbd7 {[%clk 0:02:19]} 11. dxc5 {[%clk 0:02:14]}  bxc5 {[%clk 0:02:20]} 12. Na4 {[%clk 0:01:59]}  Qa5 {[%clk 0:01:55]} 13. b3 {[%clk 0:01:56]}  Rac8 {[%clk 0:01:50]} 14. Qd2 {[%clk 0:01:33]}  Qxd2 {[%clk 0:01:47]} 15. Nxd2 {[%clk 0:01:24]}  Bc6 {[%clk 0:01:32]} 16. Bxf6 {[%clk 0:01:06]}  Nxf6 {[%clk 0:01:21]} 17. Nxc5 {[%clk 0:01:00]}  Bb5 {[%clk 0:01:06]} 18. Nd3 {[%clk 0:00:59]}  a5 {[%clk 0:01:05]} 19. Rxc8 {[%clk 0:00:56]}  Rxc8 {[%clk 0:01:06]} 20. Rc1 {[%clk 0:00:53]}  Rxc1+ {[%clk 0:00:52]} 21. Nxc1 {[%clk 0:00:53]}  Bb4 {[%clk 0:00:53]} 22. Nf3 {[%clk 0:00:46]}  Ne4 {[%clk 0:00:52]} 23. Nd4 {[%clk 0:00:38]}  Ba6 {[%clk 0:00:51]} 24. Nd3 {[%clk 0:00:30]}  Bc3 {[%clk 0:00:43]} 25. Nc2 {[%clk 0:00:22]}  Bf6 {[%clk 0:00:36]} 26. f3 {[%clk 0:00:13]}  Nc3 {[%clk 0:00:35]} 0-1


[Site "https://www.chess.com"]

[Event "Titled Tuesday Blitz January 10 Early 2023"]
[White "Mendonca, Leon Luke"]
[Black "Guimaraes, Wagner Peixoto"]
[WhiteFideId "35028561"]
[BlackFideId "2100940"]
[WhiteElo "2603"]
[BlackElo "2194"]
[Result "1-0"]
[Round "03"]
[TimeControl "180+2"]
[Date "2023.01.10"]
[WhiteClock "0:00:52"]
[BlackClock "0:00:11"]

1. c4 {[%clk 0:02:59]}  Nf6 {[%clk 0:02:58]} 2. g3 {[%clk 0:02:59]}  g6 {[%clk 0:02:56]} 3. Bg2 {[%clk 0:02:59]}  Bg7 {[%clk 0:02:57]} 4. Nc3 {[%clk 0:02:59]}  O-O {[%clk 0:02:57]} 5. Nf3 {[%clk 0:03:00]}  d5 {[%clk 0:02:54]} 6. cxd5 {[%clk 0:02:59]}  Nxd5 {[%clk 0:02:55]} 7. O-O {[%clk 0:02:59]}  Nb6 {[%clk 0:02:46]} 8. d3 {[%clk 0:02:57]}  Nc6 {[%clk 0:02:46]} 9. Be3 {[%clk 0:02:57]}  Bg4 {[%clk 0:02:41]} 10. Rc1 {[%clk 0:02:54]}  e5 {[%clk 0:02:27]} 11. Ne4 {[%clk 0:02:51]}  Bxf3 {[%clk 0:02:17]} 12. Bxf3 {[%clk 0:02:50]}  Nd4 {[%clk 0:02:17]} 13. Bxd4 {[%clk 0:02:48]}  exd4 {[%clk 0:02:18]} 14. Nc5 {[%clk 0:02:47]}  Qe7 {[%clk 0:01:48]} 15. Nxb7 {[%clk 0:02:44]}  Rab8 {[%clk 0:01:42]} 16. Qc2 {[%clk 0:02:41]}  c5 {[%clk 0:01:34]} 17. Qxc5 {[%clk 0:02:38]}  Rxb7 {[%clk 0:01:32]} 18. Bxb7 {[%clk 0:02:34]}  Qxb7 {[%clk 0:01:31]} 19. Qc6 {[%clk 0:02:26]}  Qe7 {[%clk 0:01:26]} 20. Rc2 {[%clk 0:02:23]}  Rc8 {[%clk 0:01:20]} 21. Qxc8+ {[%clk 0:02:20]}  Nxc8 {[%clk 0:01:21]} 22. Rxc8+ {[%clk 0:02:21]}  Bf8 {[%clk 0:01:21]} 23. Rc2 {[%clk 0:02:16]}  Kg7 {[%clk 0:01:19]} 24. Rb1 {[%clk 0:02:15]}  Qb4 {[%clk 0:01:17]} 25. Rc4 {[%clk 0:02:02]}  Qd2 {[%clk 0:01:15]} 26. Kf1 {[%clk 0:02:02]}  Be7 {[%clk 0:00:57]} 27. Rc7 {[%clk 0:01:47]}  Bf6 {[%clk 0:00:51]} 28. Rxa7 {[%clk 0:01:43]}  Qc2 {[%clk 0:00:51]} 29. Re1 {[%clk 0:01:43]}  Qxb2 {[%clk 0:00:51]} 30. a4 {[%clk 0:01:40]}  Qa3 {[%clk 0:00:46]} 31. Rb1 {[%clk 0:01:38]}  h5 {[%clk 0:00:36]} 32. h4 {[%clk 0:01:37]}  Be5 {[%clk 0:00:27]} 33. Rbb7 {[%clk 0:01:30]}  Qa2 {[%clk 0:00:27]} 34. a5 {[%clk 0:01:28]}  Qd5 {[%clk 0:00:22]} 35. Kg1 {[%clk 0:01:23]}  Bd6 {[%clk 0:00:15]} 36. a6 {[%clk 0:01:20]}  Bc5 {[%clk 0:00:15]} 37. Rxf7+ {[%clk 0:01:04]}  Qxf7 {[%clk 0:00:15]} 38. Rxf7+ {[%clk 0:01:05]}  Kxf7 {[%clk 0:00:15]} 39. Kg2 {[%clk 0:01:06]}  Ke6 {[%clk 0:00:16]} 40. Kf3 {[%clk 0:01:07]}  Kf5 {[%clk 0:00:16]} 41. e4+ {[%clk 0:01:05]}  dxe3 {[%clk 0:00:16]} 42. fxe3 {[%clk 0:01:05]}  Ba7 {[%clk 0:00:16]} 43. d4 {[%clk 0:01:06]}  g5 {[%clk 0:00:16]} 44. e4+ {[%clk 0:01:01]}  Kf6 {[%clk 0:00:15]} 45. hxg5+ {[%clk 0:00:57]}  Kxg5 {[%clk 0:00:16]} 46. d5 {[%clk 0:00:56]}  Kf6 {[%clk 0:00:16]} 47. d6 {[%clk 0:00:54]}  Ke6 {[%clk 0:00:15]} 48. e5 {[%clk 0:00:54]}  Kd7 {[%clk 0:00:11]} 49. Ke4 {[%clk 0:00:52]} 1-0


[Site "https://www.chess.com"]

[Event "Titled Tuesday Blitz January 10 Early 2023"]
[White "Player, Edmund C"]
[Black "Leiva, Gianmarco"]
[WhiteFideId "406520"]
[BlackFideId "3804399"]
[WhiteElo "2204"]
[BlackElo "2392"]
[Result "0-1"]
[Round "03"]
[TimeControl "180+2"]
[Date "2023.01.10"]
[WhiteClock "0:00:01"]
[BlackClock "0:00:09"]

1. e4 {[%clk 0:03:00]}  c5 {[%clk 0:02:58]} 2. Nf3 {[%clk 0:02:59]}  d6 {[%clk 0:02:58]} 3. d4 {[%clk 0:02:59]}  cxd4 {[%clk 0:02:58]} 4. Nxd4 {[%clk 0:02:59]}  Nf6 {[%clk 0:02:58]} 5. Nc3 {[%clk 0:02:59]}  a6 {[%clk 0:02:56]} 6. h3 {[%clk 0:02:59]}  e5 {[%clk 0:02:55]} 7. Nde2 {[%clk 0:02:59]}  h5 {[%clk 0:02:54]} 8. Bg5 {[%clk 0:02:58]}  Be6 {[%clk 0:02:54]} 9. Bxf6 {[%clk 0:02:41]}  Qxf6 {[%clk 0:02:55]} 10. Nd5 {[%clk 0:02:41]}  Qd8 {[%clk 0:02:54]} 11. Nec3 {[%clk 0:02:41]}  g6 {[%clk 0:02:53]} 12. Qd3 {[%clk 0:02:39]}  Bh6 {[%clk 0:02:50]} 13. Rd1 {[%clk 0:02:14]}  Nc6 {[%clk 0:02:48]} 14. Be2 {[%clk 0:02:00]}  Nd4 {[%clk 0:02:46]} 15. O-O {[%clk 0:01:59]}  O-O {[%clk 0:02:44]} 16. Rfe1 {[%clk 0:01:57]}  Rc8 {[%clk 0:02:40]} 17. Bf1 {[%clk 0:01:52]}  b5 {[%clk 0:01:10]} 18. a3 {[%clk 0:01:45]}  Kh8 {[%clk 0:01:00]} 19. f4 {[%clk 0:01:42]}  Bxd5 {[%clk 0:00:50]} 20. Nxd5 {[%clk 0:01:18]}  Rxc2 {[%clk 0:00:51]} 21. Rd2 {[%clk 0:01:04]}  Rxd2 {[%clk 0:00:36]} 22. Qxd2 {[%clk 0:01:05]}  Ne6 {[%clk 0:00:36]} 23. g3 {[%clk 0:00:55]}  h4 {[%clk 0:00:33]} 24. Qc3 {[%clk 0:00:43]}  hxg3 {[%clk 0:00:25]} 25. f5 {[%clk 0:00:43]}  gxf5 {[%clk 0:00:21]} 26. exf5 {[%clk 0:00:44]}  Nf4 {[%clk 0:00:21]} 27. Nxf4 {[%clk 0:00:29]}  Bxf4 {[%clk 0:00:20]} 28. Qf3 {[%clk 0:00:30]}  Qg5 {[%clk 0:00:18]} 29. Bd3 {[%clk 0:00:27]}  Kg7 {[%clk 0:00:16]} 30. Kg2 {[%clk 0:00:25]}  Rc8 {[%clk 0:00:13]} 31. Qd5 {[%clk 0:00:23]}  Qf6 {[%clk 0:00:12]} 32. Be4 {[%clk 0:00:22]}  Rc4 {[%clk 0:00:11]} 33. Re2 {[%clk 0:00:18]}  Rd4 {[%clk 0:00:11]} 34. Qc6 {[%clk 0:00:17]}  d5 {[%clk 0:00:11]} 35. Bxd5 {[%clk 0:00:15]}  Qxf5 {[%clk 0:00:11]} 36. Be4 {[%clk 0:00:15]}  Qf6 {[%clk 0:00:11]} 37. Qc8 {[%clk 0:00:13]}  Rd2 {[%clk 0:00:07]} 38. Qg4+ {[%clk 0:00:12]}  Qg5 {[%clk 0:00:07]} 39. Rxd2 {[%clk 0:00:10]}  Bxd2 {[%clk 0:00:05]} 40. Qxg5+ {[%clk 0:00:10]}  Bxg5 {[%clk 0:00:06]} 41. Kxg3 {[%clk 0:00:11]}  Bc1 {[%clk 0:00:07]} 42. Bb7 {[%clk 0:00:09]}  a5 {[%clk 0:00:06]} 43. b4 {[%clk 0:00:09]}  Bxa3 {[%clk 0:00:06]} 44. bxa5 {[%clk 0:00:09]}  Bc5 {[%clk 0:00:06]} 45. Bc6 {[%clk 0:00:08]}  b4 {[%clk 0:00:06]} 46. Bd5 {[%clk 0:00:07]}  f5 {[%clk 0:00:06]} 47. Kf3 {[%clk 0:00:06]}  e4+ {[%clk 0:00:05]} 48. Kf4 {[%clk 0:00:05]}  Kf6 {[%clk 0:00:05]} 49. Bb3 {[%clk 0:00:04]}  Bd6+ {[%clk 0:00:05]} 50. Ke3 {[%clk 0:00:04]}  Ke5 {[%clk 0:00:06]} 51. a6 {[%clk 0:00:03]}  Bc5+ {[%clk 0:00:07]} 52. Ke2 {[%clk 0:00:03]}  f4 {[%clk 0:00:08]} 53. h4 {[%clk 0:00:03]}  f3+ {[%clk 0:00:09]} 54. Kf1 {[%clk 0:00:03]}  e3 {[%clk 0:00:09]} 55. Bc4 {[%clk 0:00:03]}  Kd4 {[%clk 0:00:09]} 56. Bb5 {[%clk 0:00:03]}  b3 {[%clk 0:00:09]} 57. Ba4 {[%clk 0:00:02]}  e2+ {[%clk 0:00:08]} 58. Ke1 {[%clk 0:00:02]}  Ke3 {[%clk 0:00:08]} 59. Bxb3 {[%clk 0:00:01]}  f2# {[%clk 0:00:09]} 0-1


[Site "https://www.chess.com"]